fUST/lending_fUST_20250617
["ID","MTS","AMOUNT","RATE_DAILY","PERIOD"]
[366155263,1750090243766,-460.0,0.00022465,4]
[366155265,1750090243776,-460.0,0.00022465,4]
[366155267,1750090243786,-518.85,0.00022465,4]
[366155269,1750090243795,-1541.12,0.00022465,4]
[366155271,1750090243805,-460.0,0.00022465,4]
[366155273,1750090243814,-460.0,0.00022465,4]
[366155275,1750090243824,-460.0,0.00022465,4]
[366155277,1750090243833,-1348.12,0.00022465,4]
[366155278,1750090243843,-577.9,0.00022465,4]
[366155280,1750090243852,-460.0,0.00022465,4]
[366155282,1750090243862,-686.0,0.00022465,4]
[366155284,1750090243871,-840.81,0.00022465,4]
[366155286,1750090243881,-1405.43926163,0.00022486,7]
[366155288,1750090243891,-2513.94,0.00022487,2]
[366155290,1750090243904,-833.0,0.00022585,2]
[366155292,1750090243915,-964.0,0.0002262,2]
[366155294,1750090243924,-653.0,0.0002262,2]
[366155296,1750090243934,-2160.0,0.0002262,2]
[366155298,1750090243944,-406.0,0.0002262,2]
[366155301,1750090243954,-1405.43926163,0.00022659,7]
[366155304,1750090243964,-833.0,0.00022696,2]
[366155307,1750090243974,-460.0,0.00022739,4]
[366155309,1750090243983,-937.56,0.00022739,4]
[366155311,1750090243993,-460.0,0.00022739,4]
[366155313,1750090244002,-617.25,0.00022739,4]
[366155315,1750090244011,-628.51,0.00022739,4]
[366155317,1750090244021,-460.0,0.00022739,4]
[366155319,1750090244030,-460.0,0.00022739,4]
[366155321,1750090244039,-460.0,0.00022739,4]
[366155323,1750090244048,-518.85,0.00022739,4]
[366155325,1750090244058,-1541.12,0.00022739,4]
[366155327,1750090244067,-460.0,0.00022739,4]
[366155328,1750090244076,-460.0,0.00022739,4]
[366155330,1750090244086,-310.61,0.00022739,4]
[366155332,1750090244095,-1348.12,0.00022739,4]
[366155334,1750090244106,-577.9,0.00022739,4]
[366155336,1750090244116,-460.0,0.00022739,4]
[366155338,1750090244126,-686.0,0.00022739,4]
[366155340,1750090244136,-840.81,0.00022739,4]
[366155342,1750090244150,-833.0,0.00022744,2]
[366155344,1750090244160,-587.0,0.00022774,2]
[366155346,1750090244169,-1405.43926163,0.00022831,8]
[366155348,1750090244179,-160.0,0.00022876,2]
[366155350,1750090244189,-1000.0,0.00022923,2]
[366155352,1750090244199,-150.0,0.00022939,2]
[366155354,1750090244208,-150.0,0.00022939,2]
[366155356,1750090244218,-150.0,0.00022939,2]
[366155358,1750090244230,-160.0,0.00023,3]
[366155360,1750090244241,-921.17,0.00023,2]
[366155362,1750090244250,-10000.0,0.00023,18]
[366155364,1750090244259,-200.0,0.00023,2]
[366155366,1750090244268,-1405.43926163,0.00023003,8]
[366155368,1750090244278,-460.0,0.00023013,4]
[366155370,1750090244287,-937.56,0.00023013,4]
[366155372,1750090244297,-460.0,0.00023013,4]
[366155374,1750090244306,-617.25,0.00023013,4]
[366155375,1750090244316,-628.51,0.00023013,4]
[366155377,1750090244327,-460.0,0.00023013,4]
[366155379,1750090244336,-381.13,0.00023013,4]
[366155381,1750090244345,-460.0,0.00023013,4]
[366155383,1750090244355,-518.85,0.00023013,4]
[366155385,1750090244364,-1541.12,0.00023013,4]
[366155387,1750090244373,-460.0,0.00023013,4]
[366155389,1750090244383,-460.0,0.00023013,4]
[366155391,1750090244392,-1348.12,0.00023013,4]
[366155393,1750090244402,-577.9,0.00023013,4]
[366155395,1750090244411,-460.0,0.00023013,4]
[366155397,1750090244420,-686.0,0.00023013,4]
[366155399,1750090244429,-840.81,0.00023013,4]
[366155401,1750090244439,-3000.0,0.000231,2]
[366155403,1750090244448,-773.31364868,0.000231,2]
[366155405,1750090244458,-3000.0,0.0002311,2]
[366155407,1750090244467,-3000.0,0.0002312,2]
[366155409,1750090244476,-3000.0,0.0002313,2]
[366155410,1750090244485,-3000.0,0.0002314,2]
[366155412,1750090244495,-3000.0,0.0002315,2]
[366155415,1750090244505,-3000.0,0.0002316,2]
[366155416,1750090244515,-3000.0,0.0002317,2]
[366155418,1750090244524,-500.25304027,0.00023173,2]
[366155420,1750090244533,-500.0,0.00023173,2]
[366155422,1750090244543,-500.0,0.00023173,2]
[366155424,1750090244552,-500.0,0.00023173,2]
[366155426,1750090244561,-500.0,0.00023173,2]
[366155428,1750090244571,-268.122783,0.00023173,2]
[366155430,1750090244581,-500.0,0.00023173,2]
[366155432,1750090244591,-500.0,0.00023173,2]
[366155434,1750090244601,-500.0,0.00023173,2]
[366155436,1750090244610,-500.84919256,0.00023173,2]
[366155438,1750090244620,-500.0,0.00023173,2]
[366155440,1750090244629,-500.0,0.00023173,2]
[366155442,1750090244639,-500.0,0.00023173,2]
[366155444,1750090244648,-500.0,0.00023173,2]
[366155446,1750090244657,-500.0,0.00023173,2]
[366155448,1750090244667,-600.0,0.00023173,2]
[366155450,1750090244676,-500.0,0.00023173,2]
[366155452,1750090244686,-500.0,0.00023173,2]
[366155453,1750090244695,-501.54253158,0.00023173,2]
[366155455,1750090244704,-500.0,0.00023173,2]
[366155468,1750090244819,-502.19345932,0.00023173,2]
[366155470,1750090244829,-171.87098977,0.00023173,2]
[366155472,1750090244839,-500.0,0.00023173,2]
[366155474,1750090244849,-336.9302654,0.00023173,2]
[366155476,1750090244859,-636.55493512,0.00023173,2]
[366155478,1750090244868,-500.0,0.00023173,2]
[366155480,1750090244878,-500.0,0.00023173,2]
[366155481,1750090244888,-1405.43926163,0.00023176,8]
[366155483,1750090244898,-1688.0,0.00023179,2]
[366155485,1750090244908,-151.0,0.00023179,2]
[366155487,1750090244918,-152.20402766,0.00023179,2]
[366155489,1750090244927,-151.0,0.00023179,2]
[366155491,1750090244936,-210.8812712,0.00023179,2]
[366155493,1750090244946,-500.0,0.00023179,2]
[366155495,1750090244957,-500.0,0.00023179,2]
[366155497,1750090244967,-5000.0,0.00023179,2]
[366155499,1750090244976,-500.0,0.00023179,2]
[366155501,1750090244987,-500.0,0.00023179,2]
[366155503,1750090244997,-500.0,0.00023179,2]
[366155505,1750090245007,-1031.38245891,0.00023179,2]
[366155507,1750090245017,-500.0,0.00023179,2]
[366155509,1750090245027,-500.0,0.00023179,2]
[366155511,1750090245036,-500.0,0.00023179,2]
[366155513,1750090245046,-500.0,0.00023179,2]
[366155515,1750090245056,-500.0,0.00023179,2]
[366155517,1750090245065,-500.0,0.00023179,2]
[366155519,1750090245075,-500.0,0.00023179,2]
[366155521,1750090245084,-500.0,0.00023179,2]
[366155523,1750090245093,-500.0,0.00023179,2]
[366155525,1750090245103,-500.0,0.00023179,2]
[366155527,1750090245113,-500.0,0.00023179,2]
[366155529,1750090245122,-207.4,0.00023179,2]
[366155531,1750090245132,-500.0,0.00023179,2]
[366155532,1750090245143,-500.0,0.00023179,2]
[366155534,1750090245154,-500.0,0.00023179,2]
[366155536,1750090245163,-500.0,0.00023179,2]
[366155538,1750090245173,-500.0,0.00023179,2]
[366155540,1750090245183,-500.0,0.00023179,2]
[366155542,1750090245193,-500.0,0.00023179,2]
[366155544,1750090245203,-500.0,0.00023179,2]
[366155546,1750090245212,-500.0,0.00023179,2]
[366155548,1750090245224,-500.0,0.00023179,2]
[366155550,1750090245235,-500.0,0.00023179,2]
[366155552,1750090245244,-500.0,0.00023179,2]
[366155554,1750090245254,-500.0,0.00023179,2]
[366155556,1750090245263,-500.0,0.00023179,2]
[366155558,1750090245275,-3000.0,0.0002318,2]
[366155560,1750090245285,-3000.0,0.0002319,2]
[366155562,1750090245294,-104621.75539286,0.000232,2]
[366155564,1750090245304,-3000.0,0.000232,2]
[366155566,1750090245313,-3000.0,0.0002321,2]
[366155568,1750090245323,-3000.0,0.0002322,2]
[366155570,1750090245332,-3000.0,0.0002323,2]
[366155572,1750090245341,-1750.45600006,0.00023234,2]
[366155574,1750090245352,-3000.0,0.0002324,2]
[366155576,1750090245363,-3000.0,0.0002325,2]
[366155578,1750090245372,-3000.0,0.0002326,2]
[366155580,1750090245382,-3000.0,0.0002327,2]
[366155582,1750090245392,-3000.0,0.0002328,2]
[366155584,1750090245401,-205.59,0.00023287,4]
[366155586,1750090245411,-937.56,0.00023287,4]
[366155587,1750090245421,-460.0,0.00023287,4]
[366155589,1750090245430,-617.25,0.00023287,4]
[366155591,1750090245440,-628.51,0.00023287,4]
[366155594,1750090245450,-460.0,0.00023287,4]
[366155595,1750090245459,-460.0,0.00023287,4]
[366155597,1750090245468,-518.85,0.00023287,4]
[366155599,1750090245478,-1541.12,0.00023287,4]
[366155601,1750090245487,-460.0,0.00023287,4]
[366155603,1750090245496,-460.0,0.00023287,4]
[366155605,1750090245506,-1348.12,0.00023287,4]
[366155607,1750090245516,-577.9,0.00023287,4]
[366155609,1750090245527,-460.0,0.00023287,4]
[366155611,1750090245537,-686.0,0.00023287,4]
[366155613,1750090245546,-840.81,0.00023287,4]
[366155615,1750090245555,-500.0,0.00023288,2]
[366155617,1750090245566,-357.34507281,0.00023288,2]
[366155619,1750090245575,-3000.0,0.0002329,2]
[366155621,1750090245584,-3000.0,0.000233,2]
[366155623,1750090245594,-3615.770869,0.0002331,2]
[366155624,1750090245604,-1405.43926163,0.00023348,9]
[366155625,1750090245613,-306.0,0.0002337,2]
[366155626,1750090245622,-153.0,0.0002337,2]
[366155627,1750090245631,-153.0,0.0002337,2]
[366155628,1750090245642,-833.0,0.00023403,7]
[366155629,1750090245652,-53551.69464734,0.00023484,2]
[366155630,1750090245661,-1405.43926163,0.00023521,9]
[366155631,1750090245670,-937.56,0.00023561,4]
[366155632,1750090245679,-460.0,0.00023561,4]
[366155633,1750090245689,-617.25,0.00023561,4]
[366155634,1750090245699,-628.51,0.00023561,4]
[366155635,1750090245709,-460.0,0.00023561,4]
[366155636,1750090245719,-460.0,0.00023561,4]
[366155637,1750090245730,-518.85,0.00023561,4]
[366155638,1750090245739,-1541.12,0.00023561,4]
[366155639,1750090245750,-198.72668463,0.00023561,4]
[366155640,1750090245760,-460.0,0.00023561,4]
[366155641,1750090245770,-1348.12,0.00023561,4]
[366155642,1750090245780,-577.9,0.00023561,4]
[366155643,1750090245801,-460.0,0.00023561,4]
[366155644,1750090245811,-686.0,0.00023561,4]
[366155645,1750090245821,-840.81,0.00023561,4]
[366155646,1750090245831,-833.0,0.00023674,2]
[366155647,1750090245842,-1405.43926163,0.00023693,9]
[366155648,1750090245851,-1009.52386993,0.00023721,2]
[366155649,1750090245861,-1000.0,0.00023721,2]
[366155650,1750090245871,-1000.0,0.00023721,2]
[366155651,1750090245883,-1200.0,0.00023721,2]
[366155652,1750090245893,-1000.0,0.00023721,2]
[366155653,1750090245903,-501.65890684,0.00023721,2]
[366155654,1750090245912,-502.50967136,0.00023721,2]
[366155655,1750090245922,-501.16145131,0.00023721,2]
[366155657,1750090245931,-1000.0,0.00023721,2]
[366155658,1750090245941,-5000.0,0.00023727,2]
[366155659,1750090245950,-12500.0,0.0002379,3]
[366155661,1750090245959,-12500.0,0.00023799,3]
[366155663,1750090245969,-1278.46394711,0.00023799,3]
[366155665,1750090245978,-160.0,0.000238,3]
[366155667,1750090245987,-424.54874296,0.000238,3]
[366155669,1750090245996,-835.67987521,0.000238,3]
[366155671,1750090246005,-160.0,0.000238,3]
[366155672,1750090246014,-5020.69256955,0.0002381,2]
[366155675,1750090246026,-937.56,0.00023835,4]
[366155677,1750090246035,-460.0,0.00023835,4]
[366155679,1750090246045,-617.25,0.00023835,4]
[366155680,1750090246055,-628.51,0.00023835,4]
[366155682,1750090246064,-460.0,0.00023835,4]
[366155684,1750090246074,-460.0,0.00023835,4]
[366155686,1750090246083,-518.85,0.00023835,4]
[366155688,1750090246093,-1541.12,0.00023835,4]
[366155690,1750090246103,-460.0,0.00023835,4]
[366155692,1750090246114,-1348.12,0.00023835,4]
[366155694,1750090246124,-577.9,0.00023835,4]
[366155696,1750090246135,-460.0,0.00023835,4]
[366155699,1750090246149,-686.0,0.00023835,4]
[366155701,1750090246163,-840.81,0.00023835,4]
[366155702,1750090246173,-1405.43926163,0.00023866,10]
[366155704,1750090246182,-833.0,0.00023879,2]
[366155707,1750090246194,-3343.9266943,0.000239,2]
[366155708,1750090246203,-600.0,0.00023904,2]
[366155710,1750090246212,-833.0,0.00023978,2]
[366155712,1750090246223,-160.0,0.00024,7]
[366155714,1750090246232,-151.0,0.00024,7]
[366155716,1750090246242,-1000.0,0.00024,5]
[366155718,1750090246251,-158.42,0.00024,2]
[366155720,1750090246260,-160.0,0.00024,10]
[366155722,1750090246270,-835.67987521,0.00024,10]
[366155724,1750090246280,-500.0,0.0002403,2]
[366155726,1750090246289,-1405.43926163,0.00024038,10]
[366155728,1750090246298,-500.0,0.0002405,2]
[366155730,1750090246308,-500.0,0.0002405,2]
[366155732,1750090246317,-626.78445006,0.0002405,2]
[366155734,1750090246327,-937.56,0.00024109,4]
[366155736,1750090246336,-460.0,0.00024109,4]
[366155738,1750090246345,-617.25,0.00024109,4]
[366155740,1750090246355,-628.51,0.00024109,4]
[366155742,1750090246364,-460.0,0.00024109,4]
[366155744,1750090246373,-460.0,0.00024109,4]
[366155746,1750090246383,-518.85,0.00024109,4]
[366155748,1750090246392,-1541.12,0.00024109,4]
[366155750,1750090246401,-460.0,0.00024109,4]
[366155752,1750090246411,-1348.12,0.00024109,4]
[366155754,1750090246420,-577.9,0.00024109,4]
[366155755,1750090246429,-460.0,0.00024109,4]
[366155757,1750090246438,-686.0,0.00024109,4]
[366155759,1750090246447,-840.81,0.00024109,4]
[366155761,1750090246456,-439.85234204,0.00024124,2]
[366155763,1750090246466,-153.0,0.00024192,2]
[366155765,1750090246475,-296.699999,0.000242,2]
[366155767,1750090246484,-1405.43926163,0.0002421,10]
[366155769,1750090246493,-160.0,0.00024246,2]
[366155771,1750090246503,-1500.0,0.00024268,2]
[366155773,1750090246512,-1800.0,0.00024268,2]
[366155775,1750090246521,-1500.0,0.00024268,2]
[366155776,1750090246530,-1500.0,0.00024268,2]
[366155778,1750090246541,-365.4091647,0.00024269,2]
[366155780,1750090246550,-365.4091647,0.00024269,2]
[366155782,1750090246560,-729.1454784,0.00024269,2]
[366155784,1750090246568,-365.4091647,0.00024269,2]
[366155786,1750090246578,-365.4091647,0.00024269,2]
[366155788,1750090246587,-728.9914895,0.00024269,2]
[366155790,1750090246596,-834.0,0.00024327,2]
[366155792,1750090246605,-833.0,0.00024327,2]
[366155794,1750090246614,-3770.91,0.00024361,2]
[366155796,1750090246623,-1405.43926163,0.00024383,11]
[366155798,1750090246632,-937.56,0.00024383,4]
[366155800,1750090246641,-460.0,0.00024383,4]
[366155802,1750090246650,-617.25,0.00024383,4]
[366155803,1750090246660,-628.51,0.00024383,4]
[366155805,1750090246669,-313.05,0.00024383,4]
[366155807,1750090246678,-166.32,0.00024383,4]
[366155809,1750090246688,-518.85,0.00024383,4]
[366155811,1750090246697,-1541.12,0.00024383,4]
[366155813,1750090246705,-460.0,0.00024383,4]
[366155815,1750090246714,-1348.12,0.00024383,4]
[366155817,1750090246723,-577.9,0.00024383,4]
[366155819,1750090246732,-412.33,0.00024383,4]
[366155821,1750090246741,-686.0,0.00024383,4]
[366155823,1750090246750,-840.81,0.00024383,4]
[366155825,1750090246760,-641.0,0.000244,2]
[366155827,1750090246770,-1155.98665,0.00024401,3]
[366155829,1750090246779,-200.0,0.0002446,10]
[366155831,1750090246789,-151.0,0.000245,7]
[366155833,1750090246798,-811.52722521,0.000245,7]
[366155834,1750090246807,-2200.0,0.00024546,2]
[366155836,1750090246816,-215.0738,0.00024548,2]
[366155838,1750090246825,-1405.43926163,0.00024555,11]
[366155840,1750090246835,-800.0,0.00024572,2]
[366155842,1750090246844,-833.0,0.00024572,2]
[366155844,1750090246853,-21117.39654003,0.0002465,2]
[366155846,1750090246863,-200.62640265,0.0002465,3]
[366155848,1750090246873,-317.0,0.0002465,3]
[366155850,1750090246882,-317.0,0.0002465,3]
[366155852,1750090246891,-1746.0,0.0002465,3]
[366155854,1750090246901,-317.0,0.0002465,3]
[366155856,1750090246910,-1746.0,0.0002465,3]
[366155858,1750090246919,-333.93634825,0.0002465,3]
[366155860,1750090246928,-317.0,0.0002465,3]
[366155862,1750090246937,-317.0,0.0002465,3]
[366155864,1750090246946,-439.6428673,0.0002465,3]
[366155866,1750090246955,-937.56,0.00024657,4]
[366155867,1750090246965,-460.0,0.00024657,4]
[366155869,1750090246974,-617.25,0.00024657,4]
[366155871,1750090246983,-628.51,0.00024657,4]
[366155873,1750090246993,-518.85,0.00024657,4]
[366155875,1750090247002,-1541.12,0.00024657,4]
[366155877,1750090247011,-518.35197712,0.00024657,4]
[366155879,1750090247022,-1348.12,0.00024657,4]
[366155881,1750090247031,-577.9,0.00024657,4]
[366155883,1750090247040,-686.0,0.00024657,4]
[366155885,1750090247050,-840.81,0.00024657,4]
[366155887,1750090247060,-1000.0,0.00024658,2]
[366155889,1750090247070,-1000.0,0.00024658,2]
[366155891,1750090247079,-1000.0,0.00024658,2]
[366155893,1750090247089,-1000.0,0.00024658,2]
[366155895,1750090247099,-1000.0,0.00024658,2]
[366155897,1750090247109,-1000.0,0.00024658,2]
[366155899,1750090247119,-1000.0,0.00024658,2]
[366155910,1750090247214,-1000.0,0.00024658,2]
[366155912,1750090247237,-1000.0,0.00024658,2]
[366155914,1750090247247,-1000.0,0.00024658,2]
[366155916,1750090247257,-1000.0,0.00024658,2]
[366155918,1750090247267,-380.0,0.00024658,2]
[366155920,1750090247278,-3001.71241896,0.00024658,2]
[366155922,1750090247288,-500.0,0.00024658,2]
[366155924,1750090247298,-500.0,0.00024685,2]
[366155926,1750090247308,-165.10605873,0.0002469,2]
[366155928,1750090247318,-200.0,0.00024691,120]
[366155930,1750090247328,-250.0,0.000247,2]
[366155932,1750090247338,-250.0,0.000247,2]
[366155934,1750090247347,-250.0,0.000247,2]
[366155936,1750090247357,-250.0,0.000247,2]
[366155938,1750090247366,-250.0,0.000247,2]
[366155939,1750090247375,-250.0,0.000247,2]
[366155941,1750090247385,-250.0,0.000247,2]
[366155943,1750090247394,-250.0,0.000247,2]
[366155945,1750090247404,-250.0,0.000247,2]
[366155947,1750090247413,-250.0,0.000247,2]
[366155949,1750090247423,-250.0,0.000247,2]
[366155951,1750090247432,-250.0,0.000247,2]
[366155953,1750090247442,-250.0,0.000247,2]
[366155955,1750090247451,-1000.0,0.000247,2]
[366155957,1750090247461,-500.0,0.00024713,2]
[366155959,1750090247470,-702.29,0.0002472,4]
[366155961,1750090247480,-1405.43926163,0.00024728,11]
[366155963,1750090247490,-118474.33724091,0.0002473,15]
[366155975,1750090247601,-416.62342695,0.0002473,15]
[366155991,1750090247755,-460.0,0.00019178,2]
[366155993,1750090247764,-531.98,0.00019178,2]
[366155995,1750090247775,-525.3,0.00019178,2]
[366155997,1750090247785,-460.0,0.00019178,2]
[366155998,1750090247796,-460.0,0.00019452,4]
[366156000,1750090247806,-460.0,0.00019726,4]
[366156002,1750090247815,-460.0,0.0002,4]
[366156004,1750090247825,-460.0,0.00020273,4]
[366156005,1750090247834,-460.0,0.00020547,4]
[366156007,1750090247844,-151.0,0.00020547,2]
[366156009,1750090247853,-460.0,0.00020821,4]
[366156011,1750090247863,-460.0,0.00021095,4]
[366156013,1750090247872,-565.08,0.00021369,4]
[366156015,1750090247881,-229.90125484,0.000238,3]
[366156017,1750090247891,-229.90125484,0.00024,10]
[366156019,1750090247901,-14242.62418526,0.0002473,15]
[366156788,1750090317557,3245.14076988,0.00019,2]
[366156789,1750090317585,1754.85923012,0.00019,2]
[366156790,1750090328267,6328.43,0.00019,2]
[366156792,1750090333845,1916.71076988,0.00019,2]
[366156793,1750090333876,3083.28923012,0.00019,2]
[366156800,1750090378050,5000.0,0.00019,2]
[366156801,1750090392783,1916.71076988,0.000189,2]
[366156802,1750090392811,10000.0,0.000189,2]
[366156803,1750090392839,10000.0,0.000189,2]
[366156804,1750090392867,10000.0,0.000189,2]
[366156805,1750090392894,10000.0,0.000189,2]
[366156806,1750090392921,861.66923012,0.000189,2]
[366156807,1750090393341,5000.0,0.00019,2]
[366156808,1750090404247,400.0,0.00024657,120]
[366156809,1750090405043,248.9058569,0.00018961,2]
[366156810,1750090408445,3889.42491298,0.00019,2]
[366156811,1750090408473,1110.57508702,0.00019,2]
[366156815,1750090453243,5000.0,0.00019,2]
[366156817,1750090469412,3889.42491298,0.00019,2]
[366156818,1750090469441,1110.57508702,0.00019,2]
[366156819,1750090471351,200.0,0.0002367,120]
[366156821,1750090484682,5000.0,0.00019,2]
[366156824,1750090499833,3889.42491298,0.00019,2]
[366156825,1750090499863,1110.57508702,0.00019,2]
[366156828,1750090516279,5000.0,0.00019,2]
[366156829,1750090531321,3889.42491298,0.00019,2]
[366156830,1750090531356,1110.57508702,0.00019,2]
[366156832,1750090546621,5000.0,0.00019,2]
[366156833,1750090562885,3889.42491298,0.00019,2]
[366156834,1750090562915,1110.57508702,0.00019,2]
[366156835,1750090578566,5000.0,0.00019,2]
[366156836,1750090586820,397.955618,0.00018615,2]
[366156838,1750090591928,200.0,0.00024051,120]
[366156839,1750090594052,3491.46929498,0.00019,2]
[366156840,1750090594083,1508.53070502,0.00019,2]
[366156841,1750090609278,5000.0,0.00019,2]
[366156842,1750090625634,3491.46929498,0.00019,2]
[366156843,1750090625664,1508.53070502,0.00019,2]
[366156846,1750090642458,5000.0,0.00019,2]
[366156847,1750090650493,417.4584567,0.00018383,2]
[366156848,1750090651038,200.0,0.00023954,120]
[366156849,1750090658283,3074.01083828,0.00019,2]
[366156850,1750090658318,1925.98916172,0.00019,2]
[366156852,1750090673416,5000.0,0.00019,2]
[366156853,1750090688785,3074.01083828,0.00019,2]
[366156854,1750090688812,1925.98916172,0.00019,2]
[366156855,1750090699111,1334.1071099,0.00018383,2]
[366156856,1750090703939,5000.0,0.00019,2]
[366156860,1750090719264,1739.90372838,0.00019,2]
[366156861,1750090719293,3260.09627162,0.00019,2]
[366156862,1750090721178,210.92163012,0.00018602,2]
[366156868,1750090734505,5000.0,0.00019,2]
[366156870,1750090750256,1528.98209826,0.00019,2]
[366156871,1750090750283,3471.01790174,0.00019,2]
[366156873,1750090765970,5000.0,0.00019,2]
[366156876,1750090781785,1528.98209826,0.00019,2]
[366156877,1750090781812,3471.01790174,0.00019,2]
[366156881,1750090797508,5000.0,0.00019,2]
[366156883,1750090813295,1528.98209826,0.00019,2]
[366156884,1750090813329,3471.01790174,0.00019,2]
[366156885,1750090825767,646.2419338,0.00018178,120]
[366156886,1750090828500,5000.0,0.00019,2]
[366156889,1750090844201,1528.98209826,0.00019,2]
[366156890,1750090844231,3195.8332367,0.00019,2]
[366156891,1750090847412,165.624049,0.00018322,2]
[366156892,1750090847680,165.624049,0.00018322,25]
[366156893,1750090847885,165.624049,0.00018322,49]
[366156894,1750090848076,165.624049,0.00018322,72]
[366156895,1750090848288,165.624049,0.00018322,96]
[366156896,1750090848518,165.624049,0.00018322,120]
[366156898,1750090864291,458.980606,0.00013699,2]
[366156901,1750090888669,3055.5355133,0.00019,2]
[366156905,1750090962590,1944.4644867,0.00019,2]
[366156908,1750091011803,200.0,0.0002447,120]
[366156918,1750091175654,153.21970863,6.8e-07,2]
[366156919,1750091175736,153.21970863,6.8e-07,2]
[366156920,1750091175864,153.21970863,6.8e-07,2]
[366156923,1750091192178,200.0,0.00024122,120]
[366156924,1750091209955,554.27893341,0.00019,2]
[366156925,1750091209980,4445.72106659,0.00019,2]
[366156927,1750091268874,5000.0,0.00019,2]
[366156928,1750091274976,400.0,0.00024657,120]
[366156929,1750091275324,554.27893341,0.00018,2]
[366156930,1750091275350,6352.78586826,0.00018,2]
[366156936,1750091311166,2073.33783377,0.000176,2]
[366156937,1750091311315,200.0,0.0002455,120]
[366156939,1750091316696,1573.87629797,0.00018177,2]
[366156940,1750091316721,3524.77554233,0.00018177,2]
[366156945,1750091321126,2294.13801183,0.00017,2]
[366156946,1750091322687,4181.08644584,0.00018,2]
[366156947,1750091322712,10000.0,0.00018,2]
[366156948,1750091322736,10000.0,0.00018,2]
[366156949,1750091322761,10000.0,0.00018,2]
[366156950,1750091322786,4831.48022137,0.00018,2]
[366156951,1750091323430,192.15606115,0.000186,2]
[366156953,1750091330493,4976.36371748,0.00019,2]
[366156954,1750091330523,23.63628252,0.00019,2]
[366156959,1750091345666,5000.0,0.00019,2]
[366156960,1750091353437,1694.65392258,0.000189,2]
[366156966,1750091361012,1480.11736372,0.00019,2]
[366156969,1750091369709,543.5370762,0.00018177,2]
[366156978,1750091405769,1258.05535498,0.00019,2]
[366156979,1750091405799,3741.94464502,0.00019,2]
[366156982,1750091411407,6258.05535498,0.00018177,2]
[366156983,1750091411434,10000.0,0.00018177,2]
[366156984,1750091411460,8641.94464502,0.00018177,2]
[366156995,1750091420976,1358.05535498,0.00019,2]
[366156996,1750091421001,3641.94464502,0.00019,2]
[366157013,1750091425373,169.785493,0.00018177,2]
[366157014,1750091431477,200.0,0.00024306,120]
[366157039,1750091432688,-201.3060297,0.00019077,2]
[366157041,1750091432698,-300.0,0.00019174,2]
[366157043,1750091432709,-300.0,0.00019175,2]
[366157044,1750091432719,-300.0,0.00019175,2]
[366157046,1750091432728,-446.64850342,0.00019176,2]
[366157048,1750091432738,-497.28190671,0.00019176,2]
[366157050,1750091432747,-1200.0,0.00019176,2]
[366157051,1750091432757,-21289.67008536,0.00019177,2]
[366157052,1750091432766,-500.0,0.00019177,2]